bitfinex/quotes_BTCUSD_20220204
["timestamp","ask_amount","ask_price","bid_price","bid_amount"]
[1643941364453,0.26809586,37372.0,37367.0,0.87684434]
[1643941364752,1.0,37371.0,37367.0,0.71579409]
[1643941365154,1.1,37371.0,37367.0,0.71079409]
[1643941366454,0.1,37371.0,37367.0,0.77772509]
[1643941366653,0.1,37371.0,37367.0,0.76672034]
[1643941366852,0.6960817,37373.0,37367.0,0.74790199]
[1643941367056,0.41278894,37373.0,37367.0,0.74790199]
[1643941367699,0.60635452,37373.0,37367.0,0.74790199]
[1643941368104,0.41278894,37373.0,37367.0,0.74790199]
[1643941369100,0.2047485,37370.0,37367.0,0.74790199]
[1643941369301,0.41278894,37373.0,37367.0,0.74790199]
[1643941369500,0.41278894,37373.0,37367.0,0.74865518]
[1643941370299,0.41278894,37373.0,37367.0,0.93779377]
[1643941370500,0.41278894,37373.0,37367.0,0.93704058]
[1643941370703,0.41278894,37373.0,37367.0,0.93779377]
[1643941370900,0.1,37373.0,37367.0,0.93779377]
[1643941371101,0.1,37373.0,37367.0,0.74865518]
[1643941371355,0.44553733,37375.0,37367.0,0.74865518]
[1643941371557,0.44478429,37375.0,37367.0,0.81482399]
[1643941371755,0.44553734,37375.0,37372.0,0.10266073]
[1643941371955,0.44553734,37375.0,37372.0,0.16958173]
[1643941372156,0.25594155,37374.0,37372.0,0.16958173]
[1643941372355,0.25594155,37374.0,37372.0,0.066921]
[1643941373959,0.44478429,37375.0,37372.0,0.066921]
[1643941374159,0.44553736,37375.0,37372.0,0.066921]
[1643941374558,0.10075307,37375.0,37372.0,0.066921]
[1643941374757,0.00075307,37375.0,37372.0,0.066921]
[1643941375207,0.1,37376.0,37372.0,0.066921]
[1643941375407,0.52542355,37379.0,37372.0,0.066921]
[1643941375408,0.00075307,37375.0,37373.0,0.351453]
[1643941375609,0.00075307,37375.0,37374.0,0.401453]
[1643941376107,0.00075307,37375.0,37374.0,0.66057634]
[1643941376305,0.00075307,37375.0,37374.0,0.75750566]
[1643941376506,0.34478429,37378.0,37375.0,0.06691]
[1643941376708,0.00617521,37379.0,37375.0,0.06691]
[1643941376709,0.3509595,37379.0,37376.0,0.351453]
[1643941377006,0.3509595,37379.0,37375.0,0.06691]
[1643941377412,0.00617521,37379.0,37375.0,0.06691]
[1643941377809,0.00692825,37379.0,37375.0,0.06691]
[1643941378010,0.35171254,37379.0,37375.0,0.06691]
[1643941378208,0.35171254,37379.0,37375.0,0.15160313]
[1643941378412,0.00692825,37379.0,37375.0,0.06691]
[1643941378850,0.00617521,37379.0,37375.0,0.06691]
[1643941379049,0.00692825,37379.0,37375.0,0.06691]
[1643941379249,0.00692825,37379.0,37375.0,0.11691]
[1643941379849,0.00692825,37379.0,37375.0,0.06691]
[1643941380050,0.00617521,37379.0,37375.0,0.06691]
[1643941380249,0.00692825,37379.0,37375.0,0.06691]
[1643941380852,0.00692825,37379.0,37375.0,0.11691]
[1643941381155,0.00617521,37379.0,37375.0,0.11691]
[1643941381550,0.00687273,37379.0,37376.0,0.21597856]
[1643941381750,0.00687273,37379.0,37375.0,0.11691]
[1643941382451,0.00617521,37379.0,37375.0,0.11691]
[1643941382703,0.35165702,37379.0,37375.0,0.11691]
[1643941383109,0.00687273,37379.0,37375.0,0.11691]
[1643941383302,0.00687273,37379.0,37376.0,0.34093341]
[1643941383704,0.00617521,37379.0,37376.0,0.34093341]
[1643941383903,0.00687273,37379.0,37377.0,0.351453]
[1643941384703,0.00687273,37379.0,37377.0,0.31170054]
[1643941384902,0.00617521,37379.0,37377.0,0.05]
[1643941385303,0.00128274,37379.0,37378.0,0.35033]
[1643941385504,0.00128274,37379.0,37376.0,0.39093341]
[1643941385904,0.00128274,37379.0,37378.0,0.09088509]
[1643941386103,0.00128274,37379.0,37378.0,0.49121509]
[1643941386353,0.00198399,37379.0,37378.0,0.54121509]
[1643941387151,0.00128274,37379.0,37378.0,0.54121509]
[1643941387362,0.00070125,37380.0,37379.0,1.35231244]
[1643941387552,0.00070125,37380.0,37379.0,1.88643521]
[1643941387756,0.00070125,37380.0,37379.0,1.93643521]
[1643941388454,0.0011,37382.0,37379.0,0.58643521]
[1643941388655,0.0011,37382.0,37380.0,0.35033]
[1643941388857,0.0011,37382.0,37381.0,0.05]
[1643941389055,0.0011,37382.0,37380.0,0.40033]
[1643941390301,0.0011,37382.0,37380.0,0.45033]
[1643941391100,0.0011,37382.0,37380.0,0.40033]
[1643941391302,0.0011,37382.0,37380.0,0.45033]
[1643941391702,0.0011,37382.0,37380.0,0.36726028]
[1643941392101,0.0011,37382.0,37380.0,0.31726028]
[1643941392302,0.0011,37382.0,37380.0,0.36726028]
[1643941392906,0.0011,37382.0,37380.0,0.31726028]
[1643941393106,0.08999,37381.0,37379.0,0.05231244]
[1643941393304,0.08999,37381.0,37379.0,0.00231244]
[1643941393961,1.84217825,37380.0,37379.0,0.00231244]
[1643941394163,0.59217825,37380.0,37379.0,0.00231244]
[1643941395063,0.033073,37380.0,37379.0,0.05231244]
[1643941395264,0.00070101,37381.0,37379.0,0.00231244]
[1643941395464,0.00070101,37381.0,37380.0,0.35031]
[1643941395663,0.00070101,37381.0,37379.0,0.00231244]
[1643941395664,0.123063,37381.0,37379.0,0.00231244]
[1643941396064,0.23674928,37382.0,37380.0,0.35031]
[1643941396364,0.23674928,37382.0,37380.0,0.40031]
[1643941396766,0.123063,37381.0,37379.0,0.00231244]
[1643941397163,0.118063,37381.0,37379.0,0.26236256]
[1643941397363,0.35605266,37381.0,37379.0,0.00231244]
[1643941397609,0.118063,37381.0,37379.0,0.00231244]
[1643941397804,0.35064932,37381.0,37379.0,0.00231244]
[1643941398005,1.08512809,37380.0,37379.0,0.00231244]
[1643941398204,1.20318909,37380.0,37379.0,0.00231244]
[1643941398803,0.35318909,37380.0,37379.0,0.00231244]
[1643941399207,0.118061,37380.0,37379.0,0.00231244]
[1643941399810,0.22021969,37380.0,37379.0,0.00231244]
[1643941400208,0.57021969,37380.0,37379.0,0.00231244]
[1643941400808,0.57021969,37380.0,37379.0,0.03231244]
[1643941401209,1.02021969,37380.0,37379.0,0.03231244]
[1643941401851,0.57021969,37380.0,37379.0,0.03231244]
[1643941402650,0.22021969,37380.0,37379.0,0.03231244]
[1643941403858,1.2,37379.0,37374.0,0.01935877]
[1643941404056,1.66227011,37379.0,37374.0,0.01935877]
[1643941404254,1.66227011,37379.0,37374.0,0.0377337]
[1643941404255,0.3509534,37378.0,37374.0,0.0377337]
[1643941404455,0.3509534,37378.0,37374.0,0.01837493]
[1643941404456,0.118061,37377.0,37374.0,0.01837493]
[1643941404656,0.49151872,37376.0,37374.0,0.01837493]
[1643941404855,1.69321025,37375.0,37374.0,0.01837493]
[1643941405110,0.34420911,37377.0,37375.0,2.1]
[1643941405315,0.34420911,37377.0,37374.0,0.06837493]
[1643941405316,0.01431314,37385.0,37378.0,1.9]
[1643941405507,0.01431314,37385.0,37382.0,0.04]
[1643941405707,0.00054262,37386.0,37384.0,0.04]
[1643941405908,0.00054262,37386.0,37385.0,1.076063]
[1643941406406,0.00054262,37386.0,37385.0,1.176063]
[1643941406407,0.01585262,37386.0,37385.0,1.176063]
[1643941406906,0.01585262,37386.0,37383.0,0.04]
[1643941407105,0.01,37384.0,37380.0,0.1046]
[1643941407306,0.01,37384.0,37382.0,0.350363]
[1643941407307,0.07882759,37384.0,37382.0,0.350363]
[1643941407503,0.01,37383.0,37382.0,0.350363]
[1643941407804,0.00674429,37384.0,37382.0,0.350363]
[1643941407805,0.01574429,37384.0,37382.0,0.350363]
[1643941408404,0.00674429,37384.0,37382.0,0.350363]
[1643941408852,0.22942706,37383.0,37382.0,0.12760493]
[1643941409053,0.28678383,37383.0,37382.0,0.12760493]
[1643941409651,0.28678383,37383.0,37382.0,0.12860493]
[1643941409854,0.29352812,37384.0,37382.0,0.12860493]
[1643941410054,0.29352812,37384.0,37383.0,0.041]
[1643941410254,0.30328049,37384.0,37383.0,0.350363]
[1643941410653,0.31859049,37384.0,37383.0,0.350363]
[1643941411055,0.58224382,37384.0,37383.0,0.350363]
[1643941411254,0.63529145,37384.0,37383.0,0.350363]
[1643941411455,0.34850762,37384.0,37382.0,0.067909]
[1643941411657,0.93680687,37383.0,37382.0,0.067909]
[1643941411855,0.34060687,37383.0,37382.0,0.067909]
[1643941412254,0.34060687,37383.0,37382.0,0.418192]
[1643941413303,0.0538,37383.0,37382.0,0.418192]
[1643941413505,0.34063258,37383.0,37382.0,0.418192]
[1643941413704,0.0538,37383.0,37382.0,0.418192]
[1643941414305,0.06911,37383.0,37382.0,0.418192]
[1643941415205,0.30466764,37383.0,37382.0,0.067909]
[1643941415405,0.30500944,37383.0,37382.0,0.067909]
[1643941415905,0.06911,37383.0,37382.0,0.067909]
[1643941416949,0.51911,37383.0,37382.0,0.067909]
[1643941417350,0.35,37382.0,37375.0,0.8574887]
[1643941417555,0.229527,37379.0,37375.0,0.0947887]
[1643941417752,0.5225015,37378.0,37375.0,0.1447887]
[1643941418352,0.5225015,37378.0,37377.0,0.066909]
[1643941418554,0.2929745,37378.0,37376.0,0.06691]
[1643941418755,0.2929745,37378.0,37370.0,0.133834]
[1643941418756,0.222764,37377.0,37370.0,0.133834]
[1643941418955,0.05,37371.0,37370.0,0.133834]
[1643941419153,0.05,37371.0,37368.0,0.350283]
[1643941419154,0.1038,37371.0,37368.0,0.350283]
[1643941419353,0.05,37369.0,37368.0,0.350283]
[1643941419553,0.1038,37369.0,37368.0,0.350283]
[1643941419755,0.1038,37369.0,37367.0,0.71079409]
[1643941419756,1.722764,37368.0,37367.0,0.71154664]
[1643941419955,2.09725068,37368.0,37367.0,0.71154664]
[1643941420213,1.86761235,37368.0,37367.0,0.71154664]
[1643941420409,1.776564,37368.0,37367.0,0.71154664]
[1643941420610,0.276564,37368.0,37367.0,0.71154664]
[1643941420809,0.276564,37368.0,37367.0,0.71079409]
[1643941420810,0.59008523,37368.0,37367.0,0.71079409]
[1643941421008,1.26973395,37368.0,37367.0,0.71079409]
[1643941421209,0.81973395,37368.0,37367.0,0.71079409]
[1643941421409,0.91094147,37368.0,37367.0,0.71079409]
[1643941421610,0.92625147,37368.0,37367.0,0.71079409]
[1643941421909,1.15251414,37368.0,37367.0,0.71079409]
[1643941422909,1.80251414,37368.0,37367.0,0.71079409]
[1643941423311,1.15251414,37368.0,37367.0,0.71079409]
[1643941423958,1.60251414,37368.0,37367.0,0.71079409]
[1643941424458,1.37286542,37368.0,37367.0,0.71079409]
[1643941425057,1.37370065,37368.0,37367.0,0.71079409]
[1643941425859,2.42370065,37368.0,37367.0,0.71079409]
[1643941426259,2.15,37367.0,37366.0,0.00075255]
[1643941426468,2.15,37367.0,37347.0,0.921221]
[1643941426469,2.15,37365.0,37352.0,0.133892]
[1643941426672,2.15,37365.0,37346.0,0.0024257]
[1643941426673,1.6,37352.0,37346.0,0.0024257]
[1643941426867,0.40593915,37351.0,37346.0,0.0024257]
[1643941427063,0.95,37347.0,37346.0,0.0024257]
[1643941427261,1.47344895,37347.0,37346.0,0.0024257]
[1643941427709,1.70280291,37347.0,37346.0,0.0024257]
[1643941428709,1.58003891,37347.0,37340.0,0.05]
[1643941428910,1.58003891,37347.0,37336.0,0.03]
[1643941428911,0.32000517,37340.0,37336.0,0.03]
[1643941429111,1.8,37337.0,37336.0,0.03]
[1643941429308,2.176564,37337.0,37336.0,0.03]
[1643941429509,1.2,37336.0,37331.0,0.01]
[1643941429710,1.65,37332.0,37331.0,0.01]
[1643941429910,1.92418369,37332.0,37331.0,0.01]
[1643941430110,1.04694769,37332.0,37331.0,0.0098]
[1643941430309,0.32418369,37332.0,37331.0,0.0098]
[1643941430511,0.82709853,37332.0,37331.0,0.0098]
[1643941430710,0.37472278,37332.0,37331.0,0.0098]
[1643941430912,0.0538,37332.0,37331.0,0.360083]
[1643941431557,0.0538,37332.0,37331.0,0.350083]
[1643941431756,0.5038,37332.0,37328.0,0.00022876]
[1643941431956,0.05,37329.0,37327.0,1.00022876]
[1643941432156,0.1038,37329.0,37327.0,1.00022876]
[1643941432356,0.60870798,37328.0,37327.0,1.00022876]
[1643941432555,0.36236361,37328.0,37327.0,1.00022876]
[1643941432760,0.1038,37329.0,37327.0,1.00022876]
[1643941433159,0.1038,37329.0,37328.0,0.350693]
[1643941433357,0.338143,37329.0,37328.0,0.00022876]
[1643941433757,0.338143,37329.0,37327.0,1.00022876]
[1643941433956,0.23425732,37328.0,37327.0,1.00022876]
[1643941434158,0.28805732,37328.0,37327.0,1.00022876]
[1643941434357,0.0538,37328.0,37327.0,1.00022876]
[1643941434756,0.28194966,37328.0,37327.0,1.00022876]
[1643941434957,0.29725966,37328.0,37327.0,1.00022876]
[1643941436204,0.4977958,37328.0,37327.0,1.00022876]
[1643941436603,0.4439958,37328.0,37327.0,1.00022876]
[1643941437604,0.44475603,37328.0,37327.0,1.00022876]
[1643941437804,0.44993888,37328.0,37327.0,1.00022876]
[1643941438606,0.21584614,37328.0,37327.0,1.00022876]
[1643941439851,0.44323692,37328.0,37327.0,1.00022876]
[1643941440055,0.21584614,37328.0,37327.0,1.00022876]
[1643941441653,0.44474905,37328.0,37327.0,1.00022876]
[1643941443708,0.21584614,37328.0,37327.0,1.00022876]
[1643941444808,0.01531,37328.0,37327.0,1.00022876]
[1643941445007,0.01531,37328.0,37327.0,1.35092176]
[1643941446561,0.01531,37328.0,37327.0,1.00022876]
[1643941447663,1.13821,37328.0,37327.0,0.38680981]
[1643941447861,0.01531,37328.0,37327.0,0.38680981]
[1643941448263,0.24850007,37328.0,37327.0,0.38680981]
[1643941449564,0.79850007,37328.0,37327.0,0.38680981]
[1643941449761,0.78821,37328.0,37327.0,0.38680981]
[1643941449962,0.23821,37328.0,37327.0,0.38680981]
[1643941450205,0.01531,37328.0,37327.0,0.38680981]
[1643941451206,0.36531,37328.0,37327.0,0.38639081]
[1643941451411,0.01531,37328.0,37327.0,0.38639081]
[1643941452408,0.01531,37328.0,37327.0,0.73708381]
[1643941452809,0.06531,37328.0,37327.0,0.73708381]
[1643941453208,0.05,37328.0,37327.0,0.73708381]
[1643941453408,0.05,37328.0,37327.0,0.38639081]
[1643941454054,0.05,37328.0,37327.0,0.38457634]
[1643941456453,0.06531,37328.0,37327.0,0.38457634]
[1643941458107,0.14034763,37328.0,37327.0,0.38457634]
[1643941459109,0.06531,37328.0,37327.0,0.38457634]
[1643941460712,0.15469402,37328.0,37327.0,0.38457634]
[1643941461114,0.06531,37328.0,37327.0,0.38457634]
[1643941461364,0.01531,37328.0,37327.0,0.73526934]
[1643941462263,0.01531,37328.0,37327.0,0.9257632]
[1643941462464,0.05,37329.0,37328.0,0.350693]
[1643941462663,0.06531,37329.0,37328.0,0.350693]
[1643941462864,0.01531,37329.0,37328.0,0.350693]
[1643941463066,0.01531,37329.0,37328.0,0.44462624]
[1643941463264,0.01531,37329.0,37328.0,0.49462624]
[1643941463664,0.06531,37329.0,37328.0,0.49462624]
[1643941464874,0.035919,37329.0,37328.0,0.50870724]
[1643941465108,0.035919,37329.0,37328.0,0.414774]
[1643941465307,0.035919,37329.0,37328.0,0.409774]
[1643941466005,0.035919,37329.0,37328.0,0.350693]
[1643941466207,0.035919,37329.0,37327.0,0.385329]
[1643941466407,0.035919,37329.0,37327.0,0.38457634]
[1643941466807,0.035919,37329.0,37327.0,0.58385126]
[1643941467309,0.035919,37329.0,37327.0,0.63385126]
[1643941467509,0.035919,37329.0,37327.0,0.38457634]
[1643941471960,0.030919,37329.0,37327.0,0.38457634]
[1643941472160,0.030919,37328.0,37327.0,0.38457634]
[1643941472805,0.31128838,37328.0,37327.0,0.38457634]
[1643941475510,0.31128838,37328.0,37326.0,1.01070089]
[1643941475511,1.0,37327.0,37326.0,1.01070089]
[1643941475810,1.61142764,37327.0,37326.0,1.01093758]
[1643941476007,1.84066115,37327.0,37326.0,1.01023669]
[1643941476207,1.84066115,37327.0,37326.0,0.23051331]
[1643941476474,1.84066115,37327.0,37326.0,0.21608974]
[1643941477173,0.45213351,37327.0,37326.0,0.21608974]
[1643941477374,0.2229,37327.0,37326.0,0.21608974]
[1643941477575,0.28454046,37324.0,37323.0,0.350693]
[1643941478174,0.33454046,37324.0,37323.0,0.350693]
[1643941478372,0.58264777,37324.0,37321.0,0.255804]
[1643941478573,0.32158921,37322.0,37321.0,0.255804]
[1643941478772,0.37158921,37322.0,37321.0,0.606497]
[1643941478971,0.37158921,37322.0,37321.0,0.58678937]
[1643941479174,0.05,37322.0,37321.0,0.58678937]
[1643941479373,0.05,37322.0,37321.0,0.58178937]
[1643941479374,0.8,37322.0,37321.0,0.58178937]
[1643941479575,0.05,37322.0,37321.0,0.355693]
[1643941479774,0.05,37322.0,37321.0,0.58178937]
[1643941479973,0.05,37322.0,37321.0,0.355693]
[1643941480213,0.6,37322.0,37321.0,0.355693]
[1643941480412,0.83776542,37322.0,37321.0,0.005]
[1643941480809,0.28776542,37322.0,37321.0,0.005]
[1643941483214,1.28776542,37322.0,37321.0,0.005]
[1643941483513,1.51066542,37322.0,37321.0,0.005]
[1643941483711,1.61066542,37322.0,37321.0,0.005]
[1643941484960,0.61066542,37322.0,37321.0,0.005]
[1643941485159,1.01066542,37322.0,37321.0,0.005]
[1643941485362,0.60566542,37322.0,37321.0,0.005]
[1643941487065,1.9,37321.0,37320.0,0.00065769]
[1643941487262,2.2229,37321.0,37320.0,0.00065769]
[1643941488112,0.10410951,37320.0,37316.0,0.01]
[1643941488309,1.98229341,37317.0,37316.0,0.01]
[1643941488510,2.20519341,37317.0,37316.0,0.01]
[1643941488711,2.08229341,37317.0,37316.0,0.01]
[1643941489012,1.00519341,37317.0,37316.0,0.01]
[1643941489410,1.23392032,37317.0,37316.0,0.01]
[1643941489909,1.22892032,37317.0,37316.0,0.01]
[1643941490516,1.22892032,37317.0,37314.0,0.4320098]
[1643941490517,1.9229,37316.0,37314.0,0.4320098]
[1643941490717,0.2229,37314.0,37311.0,0.03140294]
[1643941490913,1.09,37312.0,37311.0,0.03140294]
[1643941491112,0.04,37312.0,37311.0,0.03140294]
[1643941491360,0.38588417,37312.0,37311.0,0.03140294]
[1643941491760,0.58311543,37312.0,37311.0,0.03140294]
[1643941491960,0.67674839,37312.0,37311.0,0.03140294]
[1643941492364,0.67674839,37312.0,37311.0,0.03163972]
[1643941492765,0.67174839,37312.0,37311.0,0.03163972]
[1643941492960,0.63674839,37312.0,37311.0,0.01023678]
[1643941493162,0.67174839,37312.0,37311.0,0.01]
[1643941493563,0.67174839,37312.0,37311.0,0.01023678]
[1643941494165,0.89464839,37312.0,37311.0,0.01023678]
[1643941494363,0.89464839,37312.0,37311.0,0.01]
[1643941494761,0.89464839,37312.0,37311.0,0.01023678]
[1643941495429,0.89464839,37312.0,37311.0,0.01]
[1643941495830,0.89464839,37312.0,37311.0,0.01023678]
[1643941496028,0.90464839,37312.0,37311.0,0.01023678]
[1643941496230,0.88964839,37312.0,37311.0,0.01023678]
[1643941496635,0.035,37315.0,37311.0,0.025]
[1643941496830,0.035,37315.0,37314.0,0.015]
[1643941497031,0.52123136,37315.0,37311.0,0.01023678]
[1643941497231,0.2579,37315.0,37311.0,0.01023678]
[1643941497630,0.22059656,37313.0,37311.0,0.01023678]
[1643941497831,0.22059656,37313.0,37311.0,0.01070312]
[1643941498032,0.08939906,37312.0,37311.0,0.01070312]
[1643941498232,0.12439906,37312.0,37311.0,0.01070312]
[1643941498860,0.12439906,37312.0,37311.0,0.01]
[1643941499362,0.12439906,37312.0,37311.0,0.02523678]
[1643941500162,0.035,37312.0,37311.0,0.02523678]
[1643941500361,0.035,37312.0,37311.0,0.025]
[1643941500763,0.27505623,37312.0,37311.0,0.01023678]
[1643941500966,0.93142347,37312.0,37311.0,0.01023678]
[1643941501161,1.37609303,37312.0,37311.0,0.01023678]
[1643941501561,0.57819871,37312.0,37311.0,0.01]
[1643941501760,0.67819871,37312.0,37311.0,0.01]
[1643941501966,0.93118851,37312.0,37311.0,0.01023678]
[1643941503813,0.93118851,37312.0,37311.0,0.01]
[1643941504214,0.93118851,37312.0,37311.0,0.01023678]
[1643941505015,0.93118851,37312.0,37311.0,0.01]
[1643941505414,0.93118851,37312.0,37311.0,0.01023678]
[1643941506362,0.93118851,37312.0,37311.0,0.01]
[1643941506662,0.93118851,37312.0,37311.0,0.01023678]
[1643941507060,1.43118851,37312.0,37311.0,0.01023678]
[1643941507462,1.43118851,37312.0,37311.0,0.01]
[1643941507761,1.43118851,37312.0,37304.0,0.01782579]
[1643941507762,0.70493429,37305.0,37304.0,0.01782579]
[1643941507961,0.35249621,37305.0,37304.0,0.01782579]
[1643941508162,0.35249621,37305.0,37304.0,0.36851879]
[1643941508360,0.38749621,37305.0,37304.0,0.36851879]
[1643941508561,0.38749621,37305.0,37304.0,0.365693]
[1643941509163,0.38249621,37305.0,37304.0,0.365693]
[1643941509762,0.38249621,37305.0,37304.0,0.415693]
[1643941510210,0.28276564,37305.0,37304.0,0.415693]
[1643941511212,0.28276564,37305.0,37304.0,0.41592978]
[1643941511411,0.36762159,37305.0,37304.0,0.41592978]
[1643941511617,0.61234213,37305.0,37304.0,0.05023678]
[1643941511812,0.83524213,37305.0,37304.0,0.01523678]
[1643941512012,0.61234213,37305.0,37304.0,0.01523678]
[1643941512213,0.61234213,37305.0,37303.0,0.00099019]
[1643941512514,0.23342028,37304.0,37303.0,0.00099019]
[1643941513312,0.23342028,37304.0,37303.0,0.00023678]
[1643941513518,0.23342028,37304.0,37302.0,0.07299019]
[1643941513718,0.035,37303.0,37302.0,0.08799019]
[1643941513985,0.51698817,37303.0,37302.0,0.08799019]
[1643941514387,0.51698817,37303.0,37302.0,0.08723678]
[1643941514784,0.61698817,37303.0,37302.0,0.08723678]
[1643941515387,0.61698817,37303.0,37302.0,0.07223678]
[1643941515784,0.51698817,37303.0,37302.0,0.07223678]
[1643941516788,0.61698817,37303.0,37302.0,0.07223678]
[1643941516987,0.51698817,37303.0,37302.0,0.07223678]
[1643941517489,0.035,37303.0,37302.0,0.07223678]
[1643941517711,0.23183437,37304.0,37302.0,0.07223678]
[1643941517911,0.035,37305.0,37303.0,0.015]
[1643941518114,0.035,37305.0,37303.0,0.01523678]
[1643941518511,0.29220155,37305.0,37303.0,0.01523678]
[1643941518711,0.035,37305.0,37303.0,0.01523678]
[1643941519515,0.035,37305.0,37304.0,0.015]
[1643941519715,0.51191558,37305.0,37304.0,0.01523678]
[1643941519914,0.51191558,37305.0,37304.0,0.00023678]
[1643941520112,0.51191558,37305.0,37303.0,0.00023678]
[1643941520313,0.23965393,37304.0,37303.0,0.00023678]
[1643941520513,0.27356906,37305.0,37303.0,0.015]
[1643941520913,0.27356906,37305.0,37303.0,0.01523678]
[1643941521115,0.27356906,37305.0,37303.0,0.00023678]
[1643941521358,0.27356906,37305.0,37302.0,0.07299019]
[1643941521560,0.22910526,37304.0,37302.0,0.07299019]
[1643941521760,0.27356906,37305.0,37302.0,0.07223678]
[1643941521964,0.25312538,37304.0,37302.0,0.07299019]
[1643941522161,0.035,37303.0,37302.0,0.07299019]
[1643941523061,0.23856906,37305.0,37302.0,0.07223678]
[1643941523062,0.27356906,37305.0,37302.0,0.07223678]
[1643941523267,0.23856906,37305.0,37302.0,0.07223678]
[1643941523460,0.23856906,37305.0,37304.0,0.015]
[1643941523662,0.47374403,37305.0,37304.0,0.015]
[1643941523863,0.23517497,37305.0,37303.0,0.01523678]
[1643941524066,0.035,37310.0,37304.0,0.365693]
[1643941524266,0.2229,37313.0,37309.0,0.015]
[1643941524465,0.035,37312.0,37304.0,0.26540344]
[1643941524662,0.2579,37312.0,37311.0,0.01]
[1643941524864,0.2229,37312.0,37304.0,0.31564022]
[1643941525125,1.18753907,37312.0,37310.0,0.01]
[1643941525313,0.98364697,37311.0,37310.0,0.01]
[1643941525613,1.20654697,37311.0,37310.0,0.01]
[1643941525811,1.24654697,37311.0,37310.0,0.01]
[1643941526011,1.24654697,37311.0,37307.0,0.00023678]
[1643941526211,0.2629,37310.0,37306.0,0.01099016]
[1643941526412,0.2629,37310.0,37308.0,0.01]
[1643941526615,0.2629,37310.0,37307.0,0.067041]
[1643941526811,0.2629,37310.0,37309.0,0.01]
[1643941527211,0.2229,37310.0,37309.0,0.01]
[1643941527412,0.1187,37314.0,37309.0,0.01]
[1643941527413,0.2229,37313.0,37309.0,0.01]
[1643941527613,0.04,37314.0,37312.0,0.077029]
[1643941528213,0.30802139,37313.0,37312.0,0.067029]
[1643941528413,0.30802139,37313.0,37312.0,0.082029]
[1643941528614,0.30802139,37313.0,37312.0,0.067029]
[1643941529457,0.30802139,37313.0,37312.0,0.082029]
[1643941529859,0.035,37314.0,37312.0,0.082029]
[1643941530061,0.035,37314.0,37313.0,1.350693]
[1643941530462,0.035,37314.0,37313.0,1.404493]
[1643941530662,0.035,37314.0,37313.0,2.504493]
[1643941530862,0.00970001,37314.0,37313.0,2.78098924]
[1643941531064,0.00075314,37321.0,37313.0,2.78098924]
[1643941531263,0.22965682,37326.0,37321.0,0.06700851]
[1643941531264,0.00970001,37326.0,37321.0,0.06700851]
[1643941531464,0.22965682,37327.0,37325.0,0.04029999]
[1643941531661,0.22965682,37327.0,37322.0,0.067007]
[1643941531662,0.00970001,37326.0,37322.0,0.067007]
[1643941532064,0.2229,37325.0,37321.0,0.1538]
[1643941532267,0.00970001,37323.0,37321.0,0.0538]
[1643941532463,0.00970001,37323.0,37321.0,0.18781901]
[1643941532715,0.00970001,37323.0,37321.0,0.32183501]
[1643941532914,0.00970001,37323.0,37322.0,0.23968662]
[1643941533315,0.0007532,37324.0,37322.0,0.63067961]
[1643941533518,0.0007532,37324.0,37322.0,0.32998661]
[1643941533716,0.35213014,37327.0,37322.0,0.39699161]
[1643941533915,0.35213014,37327.0,37324.0,0.06700502]
[1643941534115,0.35213014,37327.0,37326.0,0.04029999]
[1643941534315,0.2229,37327.0,37326.0,0.04029999]
[1643941534519,0.2229,37327.0,37326.0,0.39140641]
[1643941534723,0.23175682,37330.0,37326.0,0.39140641]
[1643941534724,0.0021,37330.0,37326.0,1.49520641]
[1643941534921,0.0021,37330.0,37329.0,1.09029999]
[1643941535118,0.0021,37330.0,37329.0,1.59479299]
[1643941535521,0.0021,37330.0,37329.0,2.17686501]
[1643941535719,0.0021,37330.0,37329.0,3.12686501]
[1643941536359,0.0021,37330.0,37329.0,3.19385101]
[1643941536761,0.0001,37330.0,37329.0,3.19385101]
[1643941537661,0.0001,37330.0,37329.0,3.86575101]
[1643941537864,0.0001,37330.0,37329.0,3.96575101]
[1643941539059,0.0001,37330.0,37329.0,3.94295101]
[1643941539662,0.0001,37330.0,37329.0,2.99295101]
[1643941540714,0.0001,37330.0,37329.0,3.80773954]
[1643941544566,0.0001,37330.0,37329.0,4.02238924]
[1643941545570,0.00075315,37331.0,37330.0,2.1]
[1643941545869,0.0011,37332.0,37331.0,2.59032196]
[1643941546069,0.001,37339.0,37331.0,2.59032196]
[1643941546070,0.001,37339.0,37333.0,0.113962]
[1643941546270,0.001,37339.0,37338.0,2.14029999]
[1643941546467,0.001,37339.0,37338.0,3.29533614]
[1643941546766,0.01727776,37342.0,37339.0,1.6]
[1643941546967,0.01727776,37342.0,37341.0,2.29099299]
[1643941547168,0.01727776,37342.0,37341.0,0.89099163]
[1643941547369,0.0011,37348.0,37341.0,0.89099163]
[1643941547627,0.0011,37348.0,37342.0,0.1]
[1643941547822,0.0011,37348.0,37343.0,0.601493]
[1643941548020,0.0011,37348.0,37344.0,0.350693]
[1643941548217,0.00075303,37347.0,37345.0,0.0538]
[1643941548419,0.00075303,37347.0,37346.0,2.72227203]
[1643941548616,0.00075303,37347.0,37346.0,2.95611203]
[1643941549219,0.0011,37348.0,37346.0,2.95611203]
[1643941549418,0.0011,37348.0,37347.0,2.100693]
[1643941549618,0.00185302,37348.0,37347.0,0.404493]
[1643941550024,0.00185302,37348.0,37347.0,0.391293]
[1643941550219,0.00185302,37348.0,37347.0,0.75725015]
[1643941550420,0.0011,37348.0,37347.0,0.75725015]
[1643941550619,0.0011,37348.0,37347.0,0.49152344]
[1643941555524,0.0011,37348.0,37347.0,0.391293]
[1643941559168,0.0011,37348.0,37347.0,0.0538]
[1643941559768,0.0011,37348.0,37347.0,0.404367]
[1643941560068,0.0011,37348.0,37347.0,0.64592899]
[1643941560470,0.0011,37348.0,37347.0,0.404367]
[1643941560871,0.09905302,37349.0,37347.0,0.404367]
[1643941561373,0.1483,37349.0,37347.0,0.404367]
[1643941561672,0.1483,37349.0,37347.0,0.64662656]
[1643941561673,0.0983,37349.0,37347.0,0.64662656]
[1643941562073,0.0983,37349.0,37347.0,0.75332656]
[1643941562272,0.0511,37349.0,37347.0,0.75332656]
[1643941562719,0.0011,37349.0,37347.0,0.75332656]
[1643941563319,0.0011,37349.0,37347.0,1.00695146]